fUSD/lending_fUSD_20240403
["ID","MTS","AMOUNT","RATE_DAILY","PERIOD"]
[321424394,1712182279087,-500.0,0.00054794,120]
[321424395,1712182279097,-518.35280255,0.00054794,120]
[321424396,1712182279105,-481.9493303,0.00054794,120]
[321424397,1712182279114,-500.0,0.00054794,120]
[321424398,1712182279123,-854.0,0.00054794,120]
[321424399,1712182279132,-501.84222635,0.00054794,120]
[321424400,1712182279142,-500.0,0.00054794,120]
[321424401,1712182279151,-500.0,0.00054794,120]
[321424402,1712182279161,-439.85070222,0.00054794,120]
[321424403,1712182279170,-507.78656315,0.00054794,120]
[321424404,1712182279180,-500.0,0.00054794,120]
[321424405,1712182279190,-500.0,0.00054794,120]
[321424406,1712182279199,-500.0,0.00054794,120]
[321424407,1712182279208,-500.34740674,0.00054794,120]
[321424408,1712182279217,-500.0,0.00054794,120]
[321424409,1712182279227,-529.02666222,0.00054794,120]
[321424410,1712182279236,-500.0,0.00054794,120]
[321424411,1712182279245,-500.0,0.00054794,120]
[321424412,1712182279255,-163.39261149,0.00054794,120]
[321424413,1712182279264,-507.86137446,0.00054794,120]
[321424414,1712182279274,-515.62287532,0.00054794,120]
[321424415,1712182279285,-500.0,0.00054794,120]
[321424416,1712182279296,-675.44,0.00054794,120]
[321424417,1712182279306,-1002.06424694,0.00054794,2]
[321424418,1712182279315,-585.36,0.00054794,120]
[321424419,1712182279325,-500.0,0.00054794,120]
[321424420,1712182279334,-500.0,0.00054794,120]
[321424421,1712182279344,-510.40366289,0.00054794,120]
[321424422,1712182279355,-500.0,0.00054794,120]
[321424423,1712182279365,-500.0,0.00054794,120]
[321424424,1712182279374,-500.0,0.00054794,120]
[321424425,1712182279385,-513.93561521,0.00054794,120]
[321424426,1712182279394,-500.0,0.00054794,120]
[321424427,1712182279404,-500.0,0.00054794,120]
[321424428,1712182279416,-500.0,0.00054794,120]
[321424429,1712182279426,-500.0,0.00054794,120]
[321424430,1712182279436,-500.0,0.00054794,120]
[321424431,1712182279446,-500.0,0.00054794,120]
[321424432,1712182279455,-512.93732202,0.00054794,120]
[321424433,1712182279465,-500.0,0.00054794,120]
[321424434,1712182279474,-515.21200817,0.00054794,120]
[321424435,1712182279484,-500.0,0.00054794,120]
[321424436,1712182279493,-500.0,0.00054794,120]
[321424437,1712182279502,-546.4803337,0.00054794,120]
[321424438,1712182279511,-500.0,0.00054794,120]
[321424439,1712182279520,-500.0,0.00054794,120]
[321424440,1712182279529,-500.0,0.00054794,120]
[321424441,1712182279538,-500.0,0.00054794,120]
[321424442,1712182279547,-510.12050361,0.00054794,120]
[321424443,1712182279556,-500.0,0.00054794,120]
[321424444,1712182279566,-507.91153287,0.00054794,120]
[321424445,1712182279575,-600.0,0.00054794,2]
[321424446,1712182279585,-551.7481468,0.00054794,120]
[321424447,1712182279595,-1657.99,0.00054794,30]
[321424448,1712182279605,-500.0,0.00054794,120]
[321424449,1712182279615,-504.12993072,0.00054794,120]
[321424450,1712182279625,-500.0,0.00054794,120]
[321424451,1712182279634,-835.03,0.00054794,120]
[321424452,1712182279645,-507.38377001,0.00054794,120]
[321424453,1712182279654,-500.0,0.00054794,120]
[321424454,1712182279665,-500.0,0.00054794,120]
[321424455,1712182279675,-500.0,0.00054794,120]
[321424456,1712182279684,-517.56558449,0.00054794,120]
[321424457,1712182279693,-500.0,0.00054794,120]
[321424458,1712182279702,-509.67767544,0.00054794,120]
[321424459,1712182279711,-749.89,0.00054794,120]
[321424460,1712182279720,-508.30182175,0.00054794,120]
[321424461,1712182279729,-500.0,0.00054794,120]
[321424462,1712182279738,-502.24073019,0.00054794,120]
[321424463,1712182279748,-539.18,0.00054794,120]
[321424464,1712182279757,-508.43084077,0.00054794,120]
[321424465,1712182279767,-501.31381906,0.00054794,120]
[321424466,1712182279776,-500.0,0.00054794,120]
[321424467,1712182279786,-500.0,0.00054794,120]
[321424468,1712182279795,-521.9581491,0.00054794,120]
[321424469,1712182279804,-500.0,0.00054794,120]
[321424470,1712182279815,-500.0,0.00054794,120]
[321424471,1712182279826,-1985.0,0.00054794,120]
[321424472,1712182279836,-500.0,0.00054794,120]
[321424473,1712182279846,-506.604401,0.00054794,120]
[321424474,1712182279858,-500.0,0.00054794,120]
[321424475,1712182279868,-500.0,0.00054794,120]
[321424476,1712182279880,-500.0,0.00054794,120]
[321424477,1712182279890,-506.72465766,0.00054794,120]
[321424478,1712182279902,-500.0,0.00054794,120]
[321424479,1712182279911,-500.0,0.00054794,120]
[321424480,1712182279921,-500.0,0.00054794,120]
[321424481,1712182279932,-508.64,0.00054794,120]
[321424482,1712182279943,-500.0,0.00054794,2]
[321424483,1712182279953,-1220.51,0.00054794,120]
[321424484,1712182279963,-500.0,0.00054794,120]
[321424485,1712182279973,-500.0,0.00054794,120]
[321424486,1712182279983,-511.24,0.00054794,120]
[321424487,1712182279993,-500.0,0.00054794,120]
[321424488,1712182280003,-500.0,0.00054794,120]
[321424489,1712182280012,-500.0,0.00054794,120]
[321424490,1712182280021,-633.42,0.00054794,120]
[321424491,1712182280031,-508.72387683,0.00054794,120]
[321424492,1712182280040,-504.7156112,0.00054794,120]
[321424493,1712182280050,-704.66,0.00054794,120]
[321424494,1712182280060,-1220.19,0.00054794,120]
[321424495,1712182280069,-659.49,0.00054794,120]
[321424496,1712182280079,-1673.95,0.00054794,120]
[321424497,1712182280236,-500.0,0.00054794,120]
[321424498,1712182280245,-500.0,0.00054794,120]
[321424499,1712182280254,-965.12,0.00054794,120]
[321424500,1712182280264,-500.0,0.00054794,120]
[321424501,1712182280273,-510.21331703,0.00054794,2]
[321424502,1712182280282,-516.18097757,0.00054794,120]
[321424503,1712182280291,-500.0,0.00054794,120]
[321424504,1712182280300,-935.91,0.00054794,120]
[321424505,1712182280310,-500.0,0.00054794,120]
[321424506,1712182280319,-500.0,0.00054794,120]
[321424507,1712182280328,-985.34,0.00054794,120]
[321424508,1712182280338,-500.0,0.00054794,120]
[321424509,1712182280347,-584.36788201,0.00054794,120]
[321424510,1712182280356,-526.52666836,0.00054794,120]
[321424511,1712182280365,-153.30865476,0.00054794,120]
[321424512,1712182280374,-181.1628868,0.00054794,120]
[321424513,1712182280383,-625.0,0.00054794,120]
[321424514,1712182280392,-1009.55,0.00054794,120]
[321424515,1712182280401,-503.01568906,0.00054794,120]
[321424516,1712182280412,-500.0,0.00054794,120]
[321424517,1712182280421,-544.38445311,0.00054794,120]
[321424518,1712182280431,-500.0,0.00054794,120]
[321424519,1712182280440,-513.83440369,0.00054794,120]
[321424520,1712182280449,-500.0,0.00054794,120]
[321424521,1712182280458,-500.0,0.00054794,120]
[321424522,1712182280467,-510.79329484,0.00054794,120]
[321424523,1712182280476,-705.27,0.00054794,120]
[321424524,1712182280485,-500.0,0.00054794,120]
[321424525,1712182280494,-500.0,0.00054794,120]
[321424526,1712182280503,-2000.0,0.00054794,30]
[321424527,1712182280512,-509.30792695,0.00054794,120]
[321424528,1712182280522,-500.0,0.00054794,120]
[321424529,1712182280531,-1076.91,0.00054794,120]
[321424530,1712182280541,-1080.87,0.00054794,120]
[321424531,1712182280550,-500.0,0.00054794,120]
[321424532,1712182280559,-500.0,0.00054794,120]
[321424533,1712182280568,-500.0,0.00054794,120]
[321424534,1712182280579,-500.0,0.00054794,120]
[321424535,1712182280589,-500.0,0.00054794,120]
[321424536,1712182280603,-500.0,0.00054794,120]
[321424537,1712182280613,-553.5,0.00054794,120]
[321424538,1712182280622,-884.75,0.00054794,120]
[321424539,1712182280631,-1000.0,0.00054794,30]
[321424540,1712182280642,-500.0,0.00054794,120]
[321424541,1712182280651,-1092.2,0.00054794,120]
[321424542,1712182280661,-500.0,0.00054794,120]
[321424543,1712182280671,-204.04301499,0.00054794,120]
[321424544,1712182280682,-897.02,0.00054794,120]
[321424545,1712182280692,-500.0,0.00054794,120]
[321424546,1712182280702,-295.59102705,0.00054794,120]
[321424547,1712182280711,-521.85467095,0.00054794,120]
[321424548,1712182280721,-500.0,0.00054794,120]
[321424549,1712182280730,-523.30010332,0.00054794,120]
[321424550,1712182280740,-500.0,0.00054794,120]
[321424551,1712182280749,-508.68341614,0.00054794,120]
[321424552,1712182280758,-523.1846886,0.00054794,120]
[321424553,1712182280768,-592.63,0.00054794,120]
[321424554,1712182280778,-854.62,0.00054794,120]
[321424555,1712182280787,-1215.43,0.00054794,120]
[321424556,1712182280796,-500.0,0.00054794,120]
[321424557,1712182280805,-2461.51,0.00054794,120]
[321424558,1712182280815,-485.13806164,0.00054794,120]
[321424559,1712182280824,-500.0,0.00054794,120]
[321424560,1712182280833,-500.0,0.00054794,120]
[321424561,1712182280843,-472.62094472,0.00054794,120]
[321424562,1712182280852,-500.0,0.00054794,120]
[321424563,1712182280861,-1220.58,0.00054794,120]
[321424564,1712182280870,-500.0,0.00054794,120]
[321424565,1712182280879,-590.49,0.00054794,120]
[321424566,1712182280888,-500.0,0.00054794,120]
[321424567,1712182280897,-500.0,0.00054794,120]
[321424568,1712182280907,-500.0,0.00054794,120]
[321424569,1712182280918,-500.0,0.00054794,120]
[321424570,1712182280927,-500.0,0.00054794,120]
[321424571,1712182280936,-500.0,0.00054794,120]
[321424572,1712182280945,-505.92489313,0.00054794,120]
[321424573,1712182280954,-500.0,0.00054794,120]
[321424574,1712182280963,-865.98,0.00054794,120]
[321424575,1712182280973,-516.70237293,0.00054794,120]
[321424576,1712182280982,-507.78468229,0.00054794,120]
[321424577,1712182280991,-514.68298953,0.00054794,120]
[321424578,1712182281001,-504.30017467,0.00054794,120]
[321424579,1712182281010,-500.0,0.00054794,120]
[321424580,1712182281019,-500.0,0.00054794,120]
[321424581,1712182281029,-500.0,0.00054794,120]
[321424582,1712182281038,-636.23,0.00054794,80]
[321424583,1712182281048,-518.076014,0.00054794,120]
[321424584,1712182281058,-844.34,0.00054794,120]
[321424585,1712182281067,-515.31810621,0.00054794,120]
[321424586,1712182281076,-500.0,0.00054794,120]
[321424587,1712182281086,-500.0,0.00054794,120]
[321424588,1712182281095,-500.0,0.00054794,120]
[321424589,1712182281104,-500.0,0.00054794,120]
[321424590,1712182281114,-503.23163506,0.00054794,120]
[321424591,1712182281124,-1064.18,0.00054794,120]
[321424592,1712182281134,-500.0,0.00054794,120]
[321424593,1712182281143,-500.0,0.00054794,120]
[321424594,1712182281153,-504.49881216,0.00054794,120]
[321424595,1712182281163,-514.62328702,0.00054794,120]
[321424596,1712182281173,-500.0,0.00054794,120]
[321424597,1712182281182,-504.58343045,0.00054794,120]
[321424598,1712182281192,-500.0,0.00054794,120]
[321424599,1712182281201,-500.0,0.00054794,120]
[321424600,1712182281211,-500.0,0.00054794,120]
[321424601,1712182281220,-500.0,0.00054794,120]
[321424602,1712182281230,-642.8,0.00054794,120]
[321424603,1712182281240,-511.4,0.00054794,120]
[321424604,1712182281249,-665.67,0.00054794,120]
[321424605,1712182281259,-982.66,0.00054794,120]
[321424606,1712182281269,-1176.41,0.00054794,120]
[321424607,1712182281278,-1058.87,0.00054794,120]
[321424608,1712182281288,-500.0,0.00054794,120]
[321424609,1712182281299,-1691.43,0.00054794,120]
[321424610,1712182281308,-500.0,0.00054794,120]
[321424611,1712182281318,-500.0,0.00054794,120]
[321424612,1712182281328,-520.77,0.00054794,120]
[321424613,1712182281338,-500.0,0.00054794,120]
[321424614,1712182281348,-500.0,0.00054794,120]
[321424615,1712182281357,-649.8,0.00054794,120]
[321424616,1712182281367,-509.23777003,0.00054794,120]
[321424617,1712182281376,-580.93,0.00054794,120]
[321424618,1712182281386,-880.91,0.00054794,120]
[321424619,1712182281395,-1053.04,0.00054794,120]
[321424620,1712182281405,-500.0,0.00054794,120]
[321424621,1712182281415,-500.0,0.00054794,120]
[321424622,1712182281425,-1494.41,0.00054794,120]
[321424623,1712182281435,-1559.55,0.00054794,120]
[321424624,1712182281444,-577.32777348,0.00054794,120]
[321424625,1712182281454,-1338.73,0.00054794,120]
[321424626,1712182281464,-240.50878257,0.00054794,120]
[321424627,1712182281473,-506.5283126,0.00054794,120]
[321424628,1712182281483,-507.7971728,0.00054794,120]
[321424629,1712182281493,-500.0,0.00054794,120]
[321424630,1712182281503,-715.45,0.00054794,120]
[321424631,1712182281512,-500.0,0.00054794,120]
[321424632,1712182281522,-1868.47,0.00054794,120]
[321424633,1712182281531,-500.0,0.00054794,120]
[321424634,1712182281541,-500.0,0.00054794,120]
[321424635,1712182281550,-500.0,0.00054794,120]
[321424636,1712182281559,-518.74892617,0.00054794,120]
[321424637,1712182281569,-1711.74,0.00054794,120]
[321424638,1712182281579,-500.0,0.00054794,120]
[321424639,1712182281591,-776.16,0.00054794,120]
[321424640,1712182281601,-507.301996,0.00054794,120]
[321424641,1712182281610,-533.61281662,0.00054794,120]
[321424642,1712182281619,-558.23,0.00054794,120]
[321424643,1712182281628,-521.25478602,0.00054794,120]
[321424644,1712182281639,-500.0,0.00054794,120]
[321424645,1712182281648,-505.69730223,0.00054794,120]
[321424646,1712182281657,-1058.42,0.00054794,120]
[321424647,1712182281669,-500.0,0.00054794,120]
[321424648,1712182281679,-508.75863162,0.00054794,120]
[321424649,1712182281688,-1270.06,0.00054794,120]
[321424650,1712182281697,-2171.28,0.00054794,120]
[321424651,1712182281707,-500.0,0.00054794,60]
[321424652,1712182281716,-490.53927365,0.00054794,120]
[321424653,1712182281725,-500.0,0.00054794,120]
[321424654,1712182281734,-586.43,0.00054794,120]
[321424655,1712182281745,-280.30826805,0.00054794,120]
[321424656,1712182281754,-500.0,0.00054794,120]
[321424657,1712182281764,-500.0,0.00054794,2]
[321424658,1712182281774,-500.0,0.00054794,120]
[321424659,1712182281784,-500.0,0.00054794,120]
[321424660,1712182281793,-374.07299987,0.00054794,120]
[321424661,1712182281802,-500.0,0.00054794,120]
[321424662,1712182281812,-500.0,0.00054794,120]
[321424663,1712182281821,-500.0,0.00054794,120]
[321424664,1712182281831,-500.0,0.00054794,120]
[321424665,1712182281840,-500.0,0.00054794,120]
[321424666,1712182281849,-500.0,0.00054794,120]
[321424667,1712182281858,-970.61,0.00054794,120]
[321424668,1712182281867,-500.0,0.00054794,120]
[321424669,1712182281877,-562.39,0.00054794,120]
[321424670,1712182281886,-500.0,0.00054794,120]
[321424671,1712182281896,-500.0,0.00054794,120]
[321424672,1712182281905,-500.0,0.00054794,120]
[321424673,1712182281915,-507.1740089,0.00054794,120]
[321424674,1712182281924,-500.0,0.00054794,120]
[321424675,1712182281933,-556.95,0.00054794,120]
[321424676,1712182281942,-500.0,0.00054794,120]
[321424677,1712182281951,-500.0,0.00054794,120]
[321424678,1712182281961,-500.0,0.00054794,120]
[321424679,1712182281970,-517.56,0.00054794,120]
[321424680,1712182281979,-500.0,0.00054794,120]
[321424681,1712182281988,-1175.94,0.00054794,120]
[321424682,1712182281998,-510.27749448,0.00054794,120]
[321424683,1712182282008,-504.73249031,0.00054794,120]
[321424684,1712182282018,-1753.92,0.00054794,120]
[321424685,1712182282027,-504.19529844,0.00054794,120]
[321424686,1712182282037,-500.0,0.00054794,120]
[321424687,1712182282047,-500.0,0.00054794,120]
[321424688,1712182282056,-500.0,0.00054794,120]
[321424689,1712182282066,-593.44,0.00054794,120]
[321424690,1712182282076,-500.0,0.00054794,120]
[321424691,1712182282085,-892.45,0.00054794,120]
[321424692,1712182282095,-500.0,0.00054794,120]
[321424693,1712182282104,-500.0,0.00054794,120]
[321424694,1712182282114,-638.32,0.00054794,120]
[321424695,1712182282125,-500.0,0.00054794,120]
[321424696,1712182282134,-519.57031299,0.00054794,120]
[321424697,1712182282144,-1374.06,0.00054794,120]
[321424698,1712182282154,-511.28656155,0.00054794,120]
[321424699,1712182282163,-500.0,0.00054794,120]
[321424700,1712182282173,-510.06673725,0.00054794,120]
[321424701,1712182282188,-500.0,0.00054794,120]
[321424702,1712182282198,-500.0,0.00054794,120]
[321424703,1712182282208,-925.28,0.00054794,120]
[321424704,1712182282217,-516.03922594,0.00054794,120]
[321424705,1712182282227,-500.0,0.00054794,120]
[321424706,1712182282237,-653.27,0.00054794,120]
[321424707,1712182282247,-500.0,0.00054794,120]
[321424708,1712182282257,-500.0,0.00054794,120]
[321424709,1712182282267,-500.0,0.00054794,120]
[321424710,1712182282277,-843.85,0.00054794,120]
[321424711,1712182282287,-500.0,0.00054794,120]
[321424712,1712182282297,-500.0,0.00054794,120]
[321424713,1712182282306,-1248.45,0.00054794,120]
[321424714,1712182282315,-500.0,0.00054794,120]
[321424715,1712182282325,-510.27,0.00054794,120]
[321424716,1712182282335,-500.0,0.00054794,120]
[321424717,1712182282344,-500.0,0.00054794,120]
[321424718,1712182282353,-500.0,0.00054794,120]
[321424719,1712182282538,-564.29,0.00054794,120]
[321424720,1712182282548,-500.0,0.00054794,120]
[321424721,1712182282558,-500.0,0.00054794,120]
[321424722,1712182282567,-613.92,0.00054794,120]
[321424723,1712182282576,-500.0,0.00054794,120]
[321424724,1712182282586,-831.31,0.00054794,120]
[321424725,1712182282596,-502.21007779,0.00054794,120]
[321424726,1712182282606,-500.0,0.00054794,120]
[321424727,1712182282615,-500.0,0.00054794,120]
[321424728,1712182282625,-518.90113583,0.00054794,120]
[321424729,1712182282634,-500.0,0.00054794,120]
[321424730,1712182282644,-505.01692492,0.00054794,120]
[321424731,1712182282653,-514.10252397,0.00054794,120]
[321424732,1712182282663,-1528.39,0.00054794,120]
[321424733,1712182282673,-500.0,0.00054794,120]
[321424734,1712182282682,-500.0,0.00054794,120]
[321424735,1712182282693,-820.25,0.00054794,120]
[321424736,1712182282702,-500.0,0.00054794,120]
[321424737,1712182282712,-500.0,0.00054794,120]
[321424738,1712182282722,-500.0,0.00054794,120]
[321424739,1712182282732,-675.22,0.00054794,120]
[321424740,1712182282742,-500.0,0.00054794,120]
[321424741,1712182282752,-500.0,0.00054794,120]
[321424742,1712182282762,-500.0,0.00054794,120]
[321424743,1712182282771,-500.0,0.00054794,2]
[321424744,1712182282781,-808.59,0.00054794,120]
[321424745,1712182282791,-500.0,0.00054794,120]
[321424746,1712182282800,-500.0,0.00054794,120]
[321424747,1712182282809,-508.14750368,0.00054794,120]
[321424748,1712182282819,-1000.0,0.00054794,120]
[321424749,1712182282828,-1387.24,0.00054794,120]
[321424750,1712182282838,-500.0,0.00054794,120]
[321424751,1712182282847,-500.0,0.00054794,120]
[321424752,1712182282856,-500.0,0.00054794,120]
[321424753,1712182282865,-500.0,0.00054794,120]
[321424754,1712182282874,-531.01,0.00054794,120]
[321424755,1712182282883,-1078.58,0.00054794,120]
[321424756,1712182282893,-500.0,0.00054794,120]
[321424757,1712182282902,-500.0,0.00054794,120]
[321424758,1712182282911,-500.0,0.00054794,120]
[321424759,1712182282921,-520.73032224,0.00054794,120]
[321424760,1712182282930,-517.51838716,0.00054794,120]
[321424761,1712182282940,-1259.94,0.00054794,120]
[321424762,1712182282949,-500.0,0.00054794,120]
[321424763,1712182282958,-500.0,0.00054794,120]
[321424764,1712182282968,-500.0,0.00054794,120]
[321424765,1712182282978,-500.0,0.00054794,120]
[321424766,1712182282987,-531.92663094,0.00054794,120]
[321424767,1712182282997,-500.0,0.00054794,120]
[321424768,1712182283006,-500.0,0.00054794,120]
[321424769,1712182283015,-1117.67,0.00054794,30]
[321424770,1712182283024,-1170.92,0.00054794,120]
[321424771,1712182283033,-508.13503615,0.00054794,120]
[321424772,1712182283043,-631.43,0.00054794,120]
[321424773,1712182283052,-670.32,0.00054794,120]
[321424774,1712182283061,-516.89928555,0.00054794,120]
[321424775,1712182283071,-500.0,0.00054794,120]
[321424776,1712182283081,-532.18,0.00054794,120]
[321424777,1712182283091,-500.0,0.00054794,120]
[321424778,1712182283101,-500.0,0.00054794,120]
[321424779,1712182283110,-500.0,0.00054794,120]
[321424780,1712182283120,-1112.56,0.00054794,120]
[321424781,1712182283129,-531.23,0.00054794,120]
[321424782,1712182283138,-500.0,0.00054794,120]
[321424783,1712182283147,-500.0,0.00054794,120]
[321424784,1712182283156,-1288.29,0.00054794,120]
[321424785,1712182283165,-559.19,0.00054794,120]
[321424786,1712182283174,-318.35714049,0.00054794,120]
[321424787,1712182283184,-500.0,0.00054794,120]
[321424788,1712182283193,-500.0,0.00054794,120]
[321424789,1712182283203,-1079.11,0.00054794,120]
[321424790,1712182283212,-500.0,0.00054794,120]
[321424791,1712182283222,-500.0,0.00054794,120]
[321424792,1712182283231,-500.0,0.00054794,120]
[321424793,1712182283240,-500.0,0.00054794,120]
[321424794,1712182283250,-500.0,0.00054794,120]
[321424795,1712182283260,-500.0,0.00054794,120]
[321424796,1712182283270,-500.0,0.00054794,120]
[321424797,1712182283279,-500.0,0.00054794,120]
[321424798,1712182283289,-500.0,0.00054794,120]
[321424799,1712182283298,-522.28348477,0.00054794,120]
[321424800,1712182283308,-500.0,0.00054794,120]
[321424801,1712182283318,-1135.01,0.00054794,120]
[321424802,1712182283327,-500.0,0.00054794,120]
[321424803,1712182283336,-500.0,0.00054794,120]
[321424804,1712182283346,-234.53035963,0.00054794,120]
[321424805,1712182283355,-500.0,0.00054794,120]
[321424806,1712182283364,-505.56110231,0.00054794,120]
[321424807,1712182283373,-500.0,0.00054794,120]
[321424808,1712182283383,-500.0,0.00054794,120]
[321424809,1712182283392,-570.91680593,0.00054794,120]
[321424810,1712182283401,-1677.54,0.00054794,120]
[321424811,1712182283411,-1543.8,0.00054794,120]
[321424812,1712182283420,-500.0,0.00054794,120]
[321424813,1712182283429,-500.0,0.00054794,120]
[321424814,1712182283438,-500.0,0.00054794,120]
[321424815,1712182283447,-500.0,0.00054794,120]
[321424816,1712182283456,-509.22890575,0.00054794,7]
[321424817,1712182283466,-500.0,0.00054794,120]
[321424818,1712182283475,-500.0,0.00054794,120]
[321424819,1712182283484,-500.0,0.00054794,120]
[321424820,1712182283493,-654.19,0.00054794,120]
[321424821,1712182283502,-500.0,0.00054794,120]
[321424822,1712182283521,-888.0,0.00054794,120]
[321424823,1712182283539,-555.42,0.00054794,120]
[321424824,1712182283557,-500.0,0.00054794,120]
[321424825,1712182283577,-500.0,0.00054794,120]
[321424826,1712182283593,-500.0,0.00054794,120]
[321424827,1712182283613,-500.0,0.00054794,120]
[321424828,1712182283631,-1012.65,0.00054794,120]
[321424829,1712182283647,-500.0,0.00054794,120]
[321424830,1712182283667,-536.99,0.00054794,120]
[321424831,1712182283686,-505.29988277,0.00054794,120]
[321424832,1712182283702,-1149.21,0.00054794,120]
[321424833,1712182283721,-500.0,0.00054794,120]
[321424834,1712182283740,-500.0,0.00054794,120]
[321424835,1712182283752,-1227.92,0.00054794,120]
[321424836,1712182283768,-1196.34,0.00054794,120]
[321424837,1712182283785,-509.7830299,0.00054794,120]
[321424838,1712182283796,-500.0,0.00054794,120]
[321424839,1712182283813,-503.56489493,0.00054794,120]
[321424840,1712182283827,-718.8,0.00054794,120]
[321424841,1712182283843,-506.14026944,0.00054794,120]
[321424842,1712182283857,-507.90938434,0.00054794,120]
[321424843,1712182283872,-500.0,0.00054794,120]
[321424844,1712182283887,-524.39554877,0.00054794,120]
[321424845,1712182283901,-500.0,0.00054794,120]
[321424846,1712182283916,-500.0,0.00054794,120]
[321424847,1712182283930,-831.64,0.00054794,120]
[321424848,1712182283945,-1179.39,0.00054794,120]
[321424849,1712182283960,-500.0,0.00054794,120]
[321424850,1712182283974,-509.12687492,0.00054794,120]
[321424851,1712182283989,-500.0,0.00054794,120]
[321424852,1712182284004,-500.0,0.00054794,120]
[321424853,1712182284021,-500.0,0.00054794,120]
[321424854,1712182284036,-1166.52,0.00054794,120]
[321424855,1712182284050,-500.0,0.00054794,120]
[321424856,1712182284064,-150.0,0.00054794,120]
[321424857,1712182284079,-514.14780467,0.00054794,120]
[321424858,1712182284093,-690.37,0.00054794,120]
[321424859,1712182284107,-500.0,0.00054794,120]
[321424860,1712182284122,-500.0,0.00054794,120]
[321424861,1712182284135,-516.69316658,0.00054794,120]
[321424862,1712182284150,-500.0,0.00054794,120]
[321424863,1712182284164,-500.0,0.00054794,120]
[321424864,1712182284179,-500.0,0.00054794,120]
[321424865,1712182284193,-500.0,0.00054794,120]
[321424866,1712182284208,-536.77869083,0.00054794,120]
[321424867,1712182284222,-1258.58,0.00054794,120]
[321424868,1712182284239,-500.0,0.00054794,120]
[321424869,1712182284255,-500.0,0.00054794,120]
[321424870,1712182284275,-906.33,0.00054794,120]
[321424871,1712182284290,-500.0,0.00054794,120]
[321424872,1712182284305,-500.0,0.00054794,120]
[321424873,1712182284320,-500.0,0.00054794,120]
[321424874,1712182284335,-500.0,0.00054794,120]
[321424875,1712182284349,-500.0,0.00054794,120]
[321424876,1712182284363,-500.0,0.00054794,120]
[321424877,1712182284377,-500.0,0.00054794,120]
[321424878,1712182284391,-500.0,0.00054794,120]
[321424879,1712182284407,-1009.09,0.00054794,60]
[321424880,1712182284424,-500.0,0.00054794,120]
[321424881,1712182284439,-500.0,0.00054794,120]
[321424882,1712182284455,-500.0,0.00054794,120]
[321424883,1712182284470,-500.0,0.00054794,120]
[321424884,1712182284486,-989.68,0.00054794,120]
[321424885,1712182284501,-1515.14,0.00054794,120]
[321424886,1712182284515,-570.44995802,0.00054794,120]
[321424887,1712182284530,-500.0,0.00054794,120]
[321424888,1712182284545,-1000.0,0.00054794,120]
[321424889,1712182284559,-500.0,0.00054794,120]
[321424890,1712182284574,-1077.9,0.00054794,120]
[321424891,1712182284589,-512.57048255,0.00054794,120]
[321424892,1712182284607,-505.95877875,0.00054794,120]
[321424893,1712182284622,-500.0,0.00054794,120]